Cogmind - Beta 13 @@@ ROGUE MODE // 2024.06.17 @ 09:31:31 Player: Some Pennies Result: Destroyed by Autobeam Turret with Autobeam Performance ------------- Evolutions (0) 0 Regions Visited (2) 400 Robots Destroyed (46) 230 Value Destroyed (1150) 1150 Prototype IDs (2) 40 Alien Tech Used (0) 0 Bonus (0) 0 TOTAL SCORE: 1820 Bonus ------- None Cogmind --------- Core Integrity 0/250 Matter 220/300 Energy 110/125 System Corruption 1% Temperature Cool (12) Movement Treading (340) Ox2 Location -10/Subcaves Parts ------- > --- POWER (1) -------- Light Ion Engine > --- PROPULSION (2) --- Light Treads Spiked Treads > --- UTILITY (2) ------ Huge Storage Unit Makeshift System Restoration Module > --- WEAPON (2) ------- Particle Cannon Grenade Launcher > --- INVENTORY (25) --- Subdweller Power Source Makeshift Power Source Subdweller Monowheel Disposable Heat Sink Improved Terrain Scanner ECM Suite Particle Cannon Heavy Assault Rifle Heavy Assault Rifle Heavy Assault Rifle Heavy Assault Rifle Battle Rifle Subdweller Machine Gun Battle Cannon Battle Cannon Grenade Launcher Grenade Launcher Grenade Launcher Grenade Launcher Grenade Launcher Grenade Launcher Datajack Makeshift Hammer Peak State ------------ > --- POWER ------------ Light Ion Engine > --- PROPULSION ------- Light Treads Spiked Treads > --- UTILITY ---------- Huge Storage Unit Makeshift System Restoration Module > --- WEAPON ----------- Particle Cannon Subdweller Machine Gun > --- INVENTORY -------- Subdweller Power Source Makeshift Power Source Subdweller Monowheel Improved Terrain Scanner ECM Suite Particle Cannon Heavy Assault Rifle Heavy Assault Rifle Heavy Assault Rifle Heavy Assault Rifle Battle Rifle Battle Cannon Battle Cannon Grenade Launcher Grenade Launcher Grenade Launcher Grenade Launcher Grenade Launcher Grenade Launcher Grenade Launcher Datajack Makeshift Hammer [Rating: 17] Favorites ----------- Power Light Ion Engine Engine Light Ion Engine Propulsion Light Treads Treads Light Treads Wheel Wheel Utility Huge Storage Unit Device Heat Sink Storage Huge Storage Unit Protection Light Armor Plating Weapon Particle Cannon Energy Gun Medium Laser Energy Cannon Particle Cannon Ballistic Gun Subdweller Machine Gun Launcher Grenade Launcher Build | -11 -10 -10 ------- Run | Yrd Mat Sub Slots Evolved . | . . . Power . | . . . Propulsion . | . . . Utility . | . . . Weapon . | . . . Parts Attached 46 | 7 17 22 Power 7 | 1 1 5 Engine 7 | 1 1 5 Core . | . . . Reactor . | . . . Propulsion 10 | 2 5 3 Treads 7 | 1 3 3 Leg . | . . . Wheel 3 | 1 2 . Hover . | . . . Flight . | . . . Utility 8 | 2 2 4 Device 5 | 1 1 3 Storage 2 | 1 1 . Processor . | . . . Hackware . | . . . Protection 1 | . . 1 Artifact . | . . . Weapon 21 | 2 9 10 Energy Gun 4 | 1 3 . Energy Cannon 7 | . 2 5 Ballistic Gun 5 | 1 2 2 Ballistic Cannon . | . . . Launcher 5 | . 2 3 Special Weapon . | . . . Impact Weapon . | . . . Slashing Weapon . | . . . Piercing Weapon . | . . . Special Melee Weapon . | . . . Unidentified Prototypes . | . . . Parts Lost 10 | . 1 9 Power 3 | . . 3 Propulsion 3 | . . 3 Utility 3 | . 1 2 Weapon 1 | . . 1 Highest Loss Streak 5 | . 1 5 To Critical Strikes . | . . . Average Slot Usage (%) 98 | . 99 98 Engine 12 | . 14 12 Treads 24 | . 12 27 Wheel 3 | . 15 . Device 10 | . 13 9 Storage 14 | . 14 14 Protection 3 | . . 4 Energy Gun 1 | . 6 . Energy Cannon 17 | . . 22 Ballistic Gun 8 | . 20 5 Naked Turns . | . . . Heaviest Build 100 | 11 94 100 Greatest Support 40 | 10 40 40 Greatest Overweight (x) 8 | 1 8 4 Average Overweight (x) 2 | . 3 2 Largest Inventory Capacity 25 | 8 25 25 Average Capacity 24 | 6 24 25 Most Carried 25 | 7 25 25 Average Carried 22 | 4 20 23 Final Capacity 25 | 8 25 25 Final Carried 25 | 6 25 23 Class Distribution -------------------- 79% | Mutant 20% | Scavenger-Mutant Dominant Class ---------------- Mutant | -10/Materials Mutant | -10/Subcaves Resources | -11 -10 -10 ----------- Run | Yrd Mat Sub Matter Collected 991 | 225 320 446 Remotely . | . . . Salvage Created 1521 | 26 835 660 Parts 112 | 4 57 51 Haulers Intercepted 2 | . 2 . Recyclers Shooed 3 | . 3 . Parts Field Recycled . | . . . Retrieved Matter . | . . . Parts Self-Destructed 18 | . . 18 Prevented . | . . . Kills | -11 -10 -10 ------- Run | Yrd Mat Sub Combat Hostiles Destroyed 37 | . 16 21 Guns 12 | . 11 1 Cannons 17 | . . 17 AOE 8 | . 5 3 Classes Destroyed 9 | 1 6 2 Worker 1 | . 1 . Tunneler 1 | 1 . . Hauler 2 | . 2 . Recycler 2 | . 2 . Watcher 3 | . 3 . Swarmer 12 | . 3 9 Grunt 13 | . 13 . Artisan 2 | . . 2 Subdweller 12 | . . 12 Best Kill Streak 4 | 1 4 4 Combat Bots Only 4 | . 3 4 Max Kills in Single Turn 2 | 1 2 2 Gunslinging . | . . . Exploded 2 | . 2 1 Melee . | . . . Uniques/NPCs Destroyed . | . . . Combat | -11 -10 -10 -------- Run | Yrd Mat Sub Hostile Shots Fired 165 | . 50 115 Missed 44 | . 10 34 Damage Taken 1951 | . 478 1473 Core 257 | . 59 198 Absorbed by Shields . | . . . Regen/Repaired (Parts) 229 | . 229 . Core Remaining (%) 100 | 100 . . Volleys Fired 148 | 1 57 90 Largest 2 | 2 2 2 Hottest 148 | 60 80 148 Shots Fired 266 | 2 116 148 Gun 124 | 2 112 10 Cannon 123 | . . 123 Launcher 19 | . 4 15 Special . | . . . Kinetic 77 | 1 66 10 Thermal 170 | 1 46 123 Explosive 19 | . 4 15 Electromagnetic . | . . . Robot Hit Streak 14 | 1 14 13 Robot Miss Streak 4 | . 4 3 Penetration Max . | . . . Secondary Targets . | . . . Shots Hit Robots 137 | 1 72 64 Core Hits 76 | 1 43 32 Critical Kills 1 | . 1 . Critical Parts Destroyed . | . . . Critical Strikes 3 | . 3 . Burn 2 | . 2 . Destroy 1 | . 1 . Melee Attacks . | . . . Impact . | . . . Slashing . | . . . Piercing . | . . . Sneak Attacks . | . . . Combat Hostiles . | . . . Follow-up Attacks . | . . . Damage Inflicted 2532 | 12 1024 1496 Guns 825 | 12 747 66 Cannons 1290 | . . 1290 Explosions 417 | . 277 140 Melee . | . . . Ramming . | . . . Kinetic 367 | . 301 66 Thermal 1748 | 12 446 1290 Explosive 417 | . 277 140 Electromagnetic . | . . . Impact . | . . . Slashing . | . . . Piercing . | . . . Highest Corruption 1 | . 1 1 Average Corruption 1 | . 1 1 Corruption Purged . | . . . Corruption Blocked . | . . . Effects 70 | . 16 54 Message Errors 16 | . 4 12 Matter Fused 18 | . 3 15 Heat Flow Errors 8 | . 2 6 Energy Discharges 5 | . 2 3 Parts Fused 1 | . . 1 Data Loss (minor) 10 | . 1 9 Data Loss (major) 5 | . 2 3 Misfires 5 | . 2 3 Alerts 2 | . . 2 Overload Shots . | . . . Overflow Damage 12 | . . 12 Projectiles . | . . . Explosions 12 | . . 12 Melee . | . . . Knockbacks . | . . . Impact . | . . . Kinetic . | . . . Secondary . | . . . Self-Inflicted Damage 71 | . 24 47 Shots 5 | . 2 3 Rammed . | . . . Targets Rammed . | . . . Kicked . | . . . Crushed . | . . . Highest Temperature 230 | 20 204 230 Average Temperature 38 | 15 24 54 Received Heat Transfer 471 | . 222 249 Siege Activations . | . . . Robots Corrupted . | . . . Combat Hostiles . | . . . Parts Fried . | . . . Impact Corruptions . | . . . Robots Melted . | . . . Combat Hostiles . | . . . Parts Melted 5 | . 1 4 Heat Transferred 3542 | 25 1408 2109 Parts Sabotaged . | . . . Parts Stolen . | . . . Parts Stripped . | . . . Power Chain Reactions . | . . . Alert | -11 -10 -10 ------- Run | Yrd Mat Sub Peak Influence 293 | 5 293 . Initial 3 | . 3 . Average 96 | 2 99 . Maximum Alert Level 1 | . 1 . Low Security (%) 97 | 100 97 . Level 1 2 | . 2 . Level 2 . | . . . Level 3 . | . . . Level 4 . | . . . Level 5 . | . . . High Security . | . . . Max Security . | . . . Squads Dispatched 5 | . 5 . Investigation 5 | . 5 . Extermination . | . . . Reinforcement . | . . . Assault . | . . . Garrison . | . . . Intercept . | . . . Searches Triggered . | . . . Construction Impeded . | . . . Haulers Reinforced . | . . . Active Scanning Responses . | . . . Cargo Convoy Interrupts . | . . . Stealth | -11 -10 -10 --------- Run | Yrd Mat Sub Distress Signals 2 | . 2 . Communications Jammed . | . . . Distress Signals . | . . . Times Spotted 59 | . 23 36 Peak Tracking Total 6 | . 3 6 Tactical Retreats 4 | . 3 1 Traps | -11 -10 -10 ------- Run | Yrd Mat Sub Traps Triggered 2 | . 2 . Indirectly . | . . . Trap Hack Attempts . | . . . Triggered . | . . . Disarmed . | . . . Reprogrammed . | . . . Reused . | . . . Traps Extracted . | . . . Installed . | . . . Triggered . | . . . Machines | -11 -10 -10 ---------- Run | Yrd Mat Sub Machines Disabled 2 | . 1 1 Max in Single Turn 1 | . 1 1 Machines Repaired . | . . . Machines Dismantled . | . . . Machines Sabotaged . | . . . Overloaded Fab Kills . | . . . Hacking | -11 -10 -10 --------- Run | Yrd Mat Sub Machines Accessed 8 | . 7 1 Terminals 4 | . 4 . Fabricators . | . . . Repair Stations 1 | . 1 . Recycling Units 2 | . 2 . Scanalyzers . | . . . Garrison Access . | . . . Total Hacks 20 | . 18 2 Successful 18 | . 16 2 Failed 1 | . 1 . Catastrophic . | . . . Database Lockouts 1 | . 1 . Manual 4 | . 4 . Terminals 10 | . 10 . Fabricators . | . . . Repair Stations 4 | . 4 . Recycling Units 4 | . 4 . Scanalyzers . | . . . Garrison Access . | . . . Terminal Hacks 10 | . 8 2 Record 2 | . . 2 Robot Analysis 1 | . 1 . Prototype ID Bank 1 | . 1 . Level Access Points 1 | . 1 . Emergency Access Points 1 | . 1 . Terminal Index 1 | . 1 . Alert Level 1 | . 1 . Hauler Manifests 1 | . 1 . Zone Layout 1 | . 1 . Fabricator Hacks . | . . . Repair Station Hacks 4 | . 4 . Scan Component 2 | . 2 . Repair 2 | . 2 . Recycling Unit Hacks 2 | . 2 . Retrieve Components 2 | . 2 . Scanalyzer . | . . . Garrison Access Hacks . | . . . Unauthorized Hacks 2 | . 2 . Terminals . | . . . Fabricators . | . . . Repair Stations . | . . . Recycling Units 2 | . 2 . Tunnel 2 | . 2 . Scanalyzers . | . . . Garrison Access . | . . . Data Cores Recovered . | . . . Used . | . . . Hacking Detections 2 | . 2 . Full Trace Events 1 | . 1 . Feedback Events 1 | . 1 . Corruption 1 | . 1 . Feedback Blocked . | . . . Robot Schematics Acquired . | . . . Robots Built . | . . . Authchips . | . . . Time . | . . . Total Robot Build Rating . | . . . Part Schematics Acquired . | . . . Parts Built . | . . . Authchips . | . . . Time . | . . . Total Part Build Rating . | . . . Parts Repaired 2 | . 2 . Time 52 | . 52 . Parts Recycled . | . . . Recycled Matter . | . . . Retrieved Matter . | . . . Retrieved Components 11 | . 11 . Parts Scanalyzed . | . . . Part Schematics Acquired . | . . . Parts Damaged . | . . . Bothacking | -11 -10 -10 ------------ Run | Yrd Mat Sub Used RIF Installer . | . . . Robots Hacked . | . . . Non-combat . | . . . Combat . | . . . Robot Hacks Applied . | . . . Relay Couplers Released . | . . . Fabnet Peak Effective % . | . . . Robots Rewired . | . . . Allies Hacked . | . . . Hacks Repelled . | . . . Allies | -11 -10 -10 -------- Run | Yrd Mat Sub Total Allies . | . . . Largest Group . | . . . Highest-Rated Group . | . . . Highest-Rated Ally . | . . . Total Orders . | . . . Ally Attacks . | . . . Total Damage . | . . . Kills . | . . . Allies Corrupted . | . . . Allies Melted . | . . . Intel | -11 -10 -10 ------- Run | Yrd Mat Sub Robot Analysis Total 1 | . 1 . Derelict Logs Recovered 1 | . . 1 Drone Launches . | . . . Drone Recoveries . | . . . Exploration | -11 -10 -10 ------------- Run | Yrd Mat Sub Turns Passed 9084 | 68 1845 7171 Spaces Moved 3000 | 61 836 2103 Core 23 | 23 . . Treads 2298 | . 195 2103 Legs . | . . . Wheels 679 | 38 641 . Hover . | . . . Flight . | . . . Fastest Speed 50 | 50 95 320 Average Speed 281 | 75 182 325 Slowest Speed 480 | 95 320 480 Overloaded Moves . | . . . Propulsion Burnouts . | . . . Robots Hopped . | . . . Cave-ins Triggered . | . . . Exploration Rate (%) 65 | 3 99 93 Regions Visited 2 Branch Regions 1 Pre-discovered Areas 3 | . 2 1 Known Exits Taken . | . . . Unknown Exits Taken 2 | 1 1 . Scrap Searched 5 | . . 5 Spaces Dug 20 | . . 20 Terrain Destroyed 106 | . 16 90 Melee . | . . . Projectile 10 | . . 10 AOE 96 | . 16 80 Terrain Rammed . | . . . Walls Destroyed . | . . . Machines Disabled . | . . . Actions | -11 -10 -10 --------- Run | Yrd Mat Sub Total 3408 | 80 1049 2279 Wait 121 | . 95 26 Move 2998 | 60 835 2103 Hop . | . . . Pick Up 66 | 12 33 21 Fast Attach 5 | 1 1 3 Attach 21 | 6 2 13 Detach . | . . . Swap 20 | . 14 6 Drop 29 | . 12 17 Fire 148 | 1 57 90 Melee . | . . . Ram . | . . . Kick . | . . . Crush . | . . . Escape Stasis . | . . . Rewire . | . . . Trap . | . . . Miscellaneous . | . . . Route ------- -11/Scrapyard -10/Materials (discovered 6 exits: *Mat x3 / [*Min x2] / *Sub) -10/Subcaves (discovered 2 exits: [*Mat x2]) History --------- Turn | Location | Event 14 | -11/Scrapyard | Discovered new exit (range 16) 69 | -11/Scrapyard | Entered Materials 307 | -10/Materials | Build established: Mutant 600 | -10/Materials | Central database locked down 616 | -10/Materials | Discovered new exit (range 15) 1011 | -10/Materials | Repaired Lgt. Treads 1038 | -10/Materials | Repaired Lgt. Treads 1067 | -10/Materials | Discovered new exit (range 3) 1187 | -10/Materials | Discovered new exit (range 14) 1203 | -10/Materials | Discovered new exit (range 16) 1491 | -10/Materials | Discovered new exit (range 7) 1508 | -10/Materials | Identified exit to Materials 1896 | -10/Materials | Discovered new exit (range 9) 1914 | -10/Materials | Entered Subcaves 2208 | -10/Subcaves | Build established: Scavenger-Mutant 2214 | -10/Subcaves | Shifting Twisted Machinery released Sub. Laser 2301 | -10/Subcaves | Shifting Twisted Machinery released Sub. Beam Cannon 2539 | -10/Subcaves | Discovered new exit (range 5) 3331 | -10/Subcaves | Discovered new exit (range 7) 3406 | -10/Subcaves | Learned location of Zion (-6) 3406 | -10/Subcaves | Met a Zionite searching for "candidates" 3510 | -10/Subcaves | Ambushed by angry Subdweller bent on revenge 3892 | -10/Subcaves | A swath of the cavern ceiling suddenly collapsed 4249 | -10/Subcaves | Build established: Mutant 4616 | -10/Subcaves | Core integrity fell below 50% 4704 | -10/Subcaves | Learned 2 Materials zone layouts 6118 | -10/Subcaves | Shifting Twisted Machinery released Mak. Power Source 6123 | -10/Subcaves | Shifting Twisted Machinery released Sub. Machine Gun 6940 | -10/Subcaves | Core integrity fell below 20% 6969 | -10/Subcaves | Lost 5 parts (1p2n1u1w) 7385 | -10/Subcaves | Visited Clippyterm 9021 | -10/Subcaves | Shifting Twisted Machinery released Mak. System Restoration Module 9042 | -10/Subcaves | Shifting Twisted Machinery released Sub. Optics 9085 | -10/Subcaves | Destroyed by Autobeam Turret with Autobeam Last Messages --------------- 08762_ Acquired 49 matter. 08864_ Acquired 29 matter. 08869_ System corrupted: Component data lost. 08891_ Acquired 16 matter. 08935_ System corrupted: Matter fused (-5). Mak. System Restoration Module falls loose from the Twisted Machinery. Sub. Optics falls loose from the Twisted Machinery. 09048_ Dropped Disposable Heat Sink. 09048_ Acquired Mak. System Restoration Module. 09052_ Subatomizers dissect the Disposable Heat Sink. 09054_ Acquired Disposable Heat Sink. 09079_ Machine disabled. 09079_ Destroyed Lgt. Ion Engine. 09079_ S-10 Pest destroyed. 09085_ Subatomizers dissect the Lgt. Assault Rifle. 09085_ S-10 Pest destroyed. Map ----- +----------------------------------------------------+ | & &= #?????????????????????????????? | | & ## #?????????????????????????????? | | # # ##### #?????????????????????????????? | | # # ##???## #?????????????????????????????? | | # #?????## ##?????????????????????????????? | | # # #???????####??????????????????????????????? | | #### #????????????????????????????????????????? | | ??? ##????????????????????????????????????????? | | ??## #?????????????????????????????????????????? | | ???# #?????????????????????????????????????????? | | ???#####?????????????????????????????????????????? | | ?????????????????????????????????????????????????? | | ????????????????????????##???????????????????????? | | ???????????????????????## #??????????????????????? | | ???????????????????????# #?????????????????????? | | ???????????????????????# ?????????????????????? | | ???????????????????????# !""?????????????????????? | | ?????????????????????###""""?????????????????????? | | ?????????????????????# """ #?????????????????????? | | ?????????????????????""""" ##????????????????????? | | ?????????????????????#"""" ######???????????????? | | ??????????????????????#""" ##?????? ???????? | | ?????????????????????##""" ##???? #???????? | | ????????????????????##""""" #???? ???????? | | ????????????????????# " ##??? #???????? | | ?#####??????????????# @ # ### #??? #???????? | | ## #??????????????## #### #??? ######??? | | #????????????????# #??## "#??# # ???? | | ###????????????????# #??## ### ?????? | | ###??????????????????# %= #??# #### #??????? | | ?????????????????????# %[####??## ### #???????? | | #???????????????????? =???????# ### #???????? | | #??????????????????? ??????## #???????# | | #??????????????????## * ??????# ##??#####? | | #???????????????????# =%*??????# ## #####"""## | | #??????????????????? ??????## ## ##"#"" ## | | ???????????????????? ??????# ### "" | | ??????????????????? ???????## " | | ???????????????????" t ????????# | | ???????????????????" ???????## % | | ?????????????????????"? ???????# """ """ | | ??????????????????????????????## ####### | | ?????????????????????????????## #??# | | ?????????????????????????????# #??## # | | ??############???????????????# ######## # | | ?##&&"## ##??????????????## ##??### | | ?#"%#&#& ##????####??????## #????? | | ?#|[#&%%& #????# ######?## #????? | | ?#["# #" ###### # ### ####????? | | ?#%#### ####" " ### #???????? | +----------------------------------------------------+ Best States ------------- Heat Dissipation 35 Coolant Potential 50 Energy Generation 15 Energy Capacity 250 Matter Stores 300 Matter Capacity 300 Sight Range 21 Terrain Scan Density 10 Armor Coverage 150 Evasion (%) 50 Recoil Reduction 2 Item Schematics ----------------- None Robot Schematics ------------------ None Fabricated ------------ Nothing Alien Tech Used ----------------- None Achievements -------------- None Challenges ------------ None Game ------ Seed NuclearDeliverySystem Manual? 0 Play Time 00:28:44 Cumulative 154.3 hours Start 2024.06.17 @ 09:02:08 End 2024.06.17 @ 09:31:31 Sessions 1 Manual Loads 0 Difficulty Rogue Special Mode None Game No. 134 Rogue 129 Adventurer 5 Explorer 0 Win Type - Total 3 Types 2/0/1/0/0/0/0/0/0 Lore% 63 Gallery% 75 Achievement% 53 Wizard Run 0 Options --------- Layout 2 ASCII 0 Keyboard 0 Movement Mouse Keybinds 0 Fullscreen 2 Font 24/Smallcaps Map View 50x44 Zoom Use 0% Tactical HUD 1 Map Filters NONE Filters NONE Steam 1 RUN: 88892db5-c8da-428f-b6d9-e82110496805